Cogmind - Beta 14 @@@ ROGUE MODE // 2024.09.07 @ 10:22:33 Player: Buttons Result: Destroyed by exploding Nuclear Reactor Performance ------------- Evolutions (0) 0 Regions Visited (1) 200 Robots Destroyed (26) 130 Value Destroyed (485) 485 Prototype IDs (0) 0 Alien Tech Used (0) 0 Bonus (0) 0 TOTAL SCORE: 815 Bonus ------- None Cogmind --------- Core Integrity 0/250 Matter 300/300 Energy 123/125 System Corruption 1% Temperature Cool (0) Movement Rolling (200) Ox8 Location -10/Materials Parts ------- > --- POWER (1) -------- Light Ion Engine > --- PROPULSION (2) --- Wheel > --- UTILITY (2) ------ Huge Storage Unit Seismic Detector > --- WEAPON (2) ------- Beam Cannon > --- INVENTORY (25) --- Light Ion Engine Wheel Wheel Signal Interpreter Signal Interpreter Signal Interpreter Improved Terrain Scanner ECM Suite Medium Laser Small Laser Beam Cannon Beam Cannon Beam Cannon Light Cannon Mining Laser Peak State ------------ > --- POWER ------------ Light Ion Engine > --- PROPULSION ------- Wheel Wheel > --- UTILITY ---------- Improved Terrain Scanner Seismic Detector > --- WEAPON ----------- Assault Rifle Assault Rifle > --- INVENTORY -------- Wheel Wheel Small Laser [Rating: 9] Favorites ----------- Power Light Ion Engine Engine Light Ion Engine Propulsion Wheel Wheel Wheel Utility Seismic Detector Device Seismic Detector Storage Huge Storage Unit Weapon Assault Rifle Energy Cannon Beam Cannon Ballistic Gun Assault Rifle Build | -11 -10 ------- Run | Yrd Mat Slots Evolved . | . . Power . | . . Propulsion . | . . Utility . | . . Weapon . | . . Parts Attached 13 | 8 5 Power 2 | 1 1 Engine 2 | 1 1 Core . | . . Reactor . | . . Propulsion 5 | 3 2 Treads . | . . Leg . | . . Wheel 5 | 3 2 Hover . | . . Flight . | . . Utility 3 | 2 1 Device 2 | 2 . Storage 1 | . 1 Processor . | . . Hackware . | . . Protection . | . . Artifact . | . . Weapon 3 | 2 1 Energy Gun . | . . Energy Cannon 1 | . 1 Ballistic Gun 2 | 2 . Ballistic Cannon . | . . Launcher . | . . Special Weapon . | . . Impact Weapon . | . . Slashing Weapon . | . . Piercing Weapon . | . . Special Melee Weapon . | . . Unidentified Prototypes . | . . Parts Lost 6 | . 6 Power 1 | . 1 Propulsion 3 | . 3 Utility . | . . Weapon 2 | . 2 Highest Loss Streak 2 | . 2 To Critical Strikes . | . . Average Slot Usage (%) 98 | . 98 Engine 13 | . 13 Wheel 26 | . 26 Device 14 | . 14 Storage 13 | . 13 Energy Cannon 3 | . 3 Ballistic Gun 24 | . 24 Peak Build Rating 9 | 9 9 Average Rating 7 | 4 7 On Entrance 4 | . 9 Naked Turns . | . . Heaviest Build 89 | 9 89 Greatest Support 20 | 20 20 Greatest Overweight (x) 8 | . 8 Average Overweight (x) 3 | . 4 Largest Inventory Capacity 25 | 5 25 Average Capacity 22 | 5 24 Most Carried 16 | 5 16 Average Carried 10 | 1 11 Final Capacity 25 | 5 25 Final Carried 15 | 5 15 Class Distribution -------------------- 85% | Mutant 14% | Scavenger-Mutant Dominant Class ---------------- Mutant | -10/Materials Resources | -11 -10 ----------- Run | Yrd Mat Matter Collected 676 | 292 384 Remotely . | . . Salvage Created 811 | 168 643 Parts 69 | 21 48 Haulers Intercepted 2 | . 2 Recyclers Shooed . | . . Parts Field Recycled . | . . Retrieved Matter . | . . Parts Self-Destructed . | . . Prevented . | . . Kills | -11 -10 ------- Run | Yrd Mat Combat Hostiles Destroyed 16 | 1 15 Guns 14 | 1 13 Cannons 2 | . 2 Classes Destroyed 6 | 3 3 Worker 1 | 1 . Tunneler 5 | 4 1 Hauler 2 | . 2 Watcher 2 | . 2 Swarmer 6 | . 6 Grunt 10 | 1 9 Best Kill Streak 5 | 5 5 Combat Bots Only 5 | 1 5 Max Kills in Single Turn 2 | 1 2 Gunslinging . | . . Exploded . | . . Melee . | . . Uniques/NPCs Destroyed . | . . Combat | -11 -10 -------- Run | Yrd Mat Hostile Shots Fired 67 | 2 65 Missed 16 | . 16 Damage Taken 734 | 22 712 Core 295 | . 295 Absorbed by Shields . | . . Core Remaining (%) 100 | 100 . Volleys Fired 68 | 10 58 Largest 2 | 2 2 Hottest 80 | 40 80 Shots Fired 130 | 20 110 Gun 122 | 20 102 Cannon 8 | . 8 Launcher . | . . Special . | . . Kinetic 122 | 20 102 Thermal 8 | . 8 Explosive . | . . Electromagnetic . | . . Robot Hit Streak 6 | 3 6 Robot Miss Streak 6 | 3 6 Penetration Max . | . . Secondary Targets 3 | . 3 Max Gunslinging Chain 1 | . 1 Shots Hit Robots 68 | 8 60 Core Hits 36 | 6 30 Critical Kills . | . . Critical Parts Destroyed . | . . Critical Strikes . | . . Melee Attacks . | . . Impact . | . . Slashing . | . . Piercing . | . . Sneak Attacks . | . . Combat Hostiles . | . . Follow-up Attacks . | . . Damage Inflicted 903 | 109 794 Guns 817 | 109 708 Cannons 86 | . 86 Explosions . | . . Melee . | . . Ramming . | . . Kinetic 817 | 109 708 Thermal 86 | . 86 Explosive . | . . Electromagnetic . | . . Impact . | . . Slashing . | . . Piercing . | . . Highest Corruption 1 | . 1 Average Corruption 1 | . 1 Corruption Purged . | . . Corruption Blocked . | . . Effects 1 | . 1 Energy Discharges 1 | . 1 Overload Shots . | . . Overflow Damage . | . . Projectiles . | . . Explosions . | . . Melee . | . . Knockbacks . | . . Impact . | . . Kinetic . | . . Secondary . | . . Self-Inflicted Damage . | . . Shots . | . . Rammed . | . . Targets Rammed . | . . Kicked . | . . Crushed . | . . Highest Temperature 126 | . 126 Average Temperature 47 | . 47 Received Heat Transfer 207 | 12 195 Siege Activations . | . . Robots Corrupted . | . . Combat Hostiles . | . . Parts Fried . | . . Impact Corruptions . | . . Robots Melted . | . . Combat Hostiles . | . . Parts Melted . | . . Heat Transferred 185 | . 185 Parts Sabotaged . | . . Parts Stolen . | . . Parts Stripped . | . . Power Chain Reactions . | . . Alert | -11 -10 ------- Run | Yrd Mat Peak Influence 301 | 45 301 Initial 29 | . 29 Average 144 | 15 160 Maximum Alert Level 1 | . 1 Low Security (%) 78 | 100 76 Level 1 21 | . 23 Level 2 . | . . Level 3 . | . . Level 4 . | . . Level 5 . | . . High Security . | . . Max Security . | . . Squads Dispatched 3 | . 3 Investigation 1 | . 1 Extermination . | . . Reinforcement 2 | . 2 Assault . | . . Garrison . | . . Intercept . | . . Searches Triggered . | . . Construction Impeded . | . . Haulers Reinforced . | . . Active Scanning Responses . | . . Cargo Convoy Interrupts . | . . Stealth | -11 -10 --------- Run | Yrd Mat Distress Signals . | . . Communications Jammed . | . . Distress Signals . | . . Times Spotted 26 | 1 25 Peak Tracking Total 4 | . 4 Tactical Retreats 1 | . 1 Traps | -11 -10 ------- Run | Yrd Mat Traps Triggered 1 | . 1 Indirectly . | . . Trap Hack Attempts . | . . Triggered . | . . Disarmed . | . . Reprogrammed . | . . Reused . | . . Traps Extracted . | . . Installed . | . . Triggered . | . . Machines | -11 -10 ---------- Run | Yrd Mat Machines Disabled . | . . Max in Single Turn . | . . Machines Repaired . | . . Machines Dismantled . | . . Machines Sabotaged . | . . Overloaded Fab Kills . | . . Hacking | -11 -10 --------- Run | Yrd Mat Machines Accessed 2 | . 2 Terminals 2 | . 2 Fabricators . | . . Repair Stations . | . . Recycling Units . | . . Scanalyzers . | . . Garrison Access . | . . Total Hacks 6 | . 6 Successful 2 | . 2 Failed 4 | . 4 Catastrophic 1 | . 1 Database Lockouts . | . . Manual 6 | . 6 Terminals 6 | . 6 Fabricators . | . . Repair Stations . | . . Recycling Units . | . . Scanalyzers . | . . Garrison Access . | . . Terminal Hacks . | . . Fabricator Hacks . | . . Repair Station Hacks . | . . Recycling Unit Hacks . | . . Scanalyzer . | . . Garrison Access Hacks . | . . Unauthorized Hacks 2 | . 2 Terminals 2 | . 2 Botnet 1 | . 1 Skim 1 | . 1 Fabricators . | . . Repair Stations . | . . Recycling Units . | . . Scanalyzers . | . . Garrison Access . | . . Data Cores Recovered . | . . Used . | . . Hacking Detections 2 | . 2 Full Trace Events 1 | . 1 Feedback Events 1 | . 1 Corruption 1 | . 1 Feedback Blocked . | . . Robot Schematics Acquired . | . . Robots Built . | . . Authchips . | . . Time . | . . Total Robot Build Rating . | . . Part Schematics Acquired . | . . Parts Built . | . . Authchips . | . . Time . | . . Total Part Build Rating . | . . Parts Repaired . | . . Time . | . . Parts Recycled . | . . Recycled Matter . | . . Retrieved Matter . | . . Retrieved Components . | . . Parts Scanalyzed . | . . Part Schematics Acquired . | . . Parts Damaged . | . . Bothacking | -11 -10 ------------ Run | Yrd Mat Used RIF Installer . | . . Robots Hacked . | . . Non-combat . | . . Combat . | . . Robot Hacks Applied . | . . Relay Couplers Released . | . . Fabnet Peak Effective % . | . . Robots Rewired . | . . Allies Hacked . | . . Hacks Repelled . | . . Allies | -11 -10 -------- Run | Yrd Mat Total Allies . | . . Largest Group . | . . Highest-Rated Group . | . . Highest-Rated Ally . | . . Total Orders . | . . Ally Attacks . | . . Total Damage . | . . Kills . | . . Allies Corrupted . | . . Allies Melted . | . . Intel | -11 -10 ------- Run | Yrd Mat Robot Analysis Total . | . . Derelict Logs Recovered . | . . Drone Launches . | . . Drone Recoveries . | . . Exploration | -11 -10 ------------- Run | Yrd Mat Turns Passed 913 | 98 815 Spaces Moved 503 | 72 431 Core 15 | 15 . Treads . | . . Legs . | . . Wheels 488 | 57 431 Hover . | . . Flight . | . . Fastest Speed 50 | 50 80 Average Speed 131 | 73 141 Slowest Speed 200 | 80 200 Overloaded Moves . | . . Propulsion Burnouts . | . . Robots Hopped . | . . Cave-ins Triggered . | . . Exploration Rate (%) 41 | 5 77 Regions Visited 1 Branch Regions . Pre-discovered Areas . | . . Known Exits Taken . | . . Unknown Exits Taken 1 | 1 . Scrap Searched . | . . Spaces Dug . | . . Terrain Destroyed . | . . Melee . | . . Projectile . | . . AOE . | . . Terrain Rammed . | . . Walls Destroyed . | . . Machines Disabled . | . . Actions | -11 -10 --------- Run | Yrd Mat Total 621 | 95 526 Wait 17 | . 17 Move 502 | 71 431 Hop . | . . Pick Up 19 | 5 14 Fast Attach 8 | 7 1 Attach 4 | . 4 Detach . | . . Swap 1 | 1 . Drop 2 | 1 1 Fire 68 | 10 58 Melee . | . . Ram . | . . Kick . | . . Crush . | . . Escape Stasis . | . . Rewire . | . . Trap . | . . Miscellaneous . | . . Route ------- -11/Scrapyard -10/Materials (discovered 3 exits: [*Mat] / [*Min x2]) History --------- Turn | Location | Event 2 | -11/Scrapyard | Met Revision 17 57 | -11/Scrapyard | Discovered new exit (range 8) 99 | -11/Scrapyard | Entered Materials 304 | -10/Materials | Discovered new exit (range 16) 317 | -10/Materials | Build established: Mutant 653 | -10/Materials | Discovered new exit (range 6) 692 | -10/Materials | Discovered new exit (range 11) 737 | -10/Materials | Core integrity fell below 50% 914 | -10/Materials | Destroyed by exploding Nuclear Reactor Last Messages --------------- 00726_ Wheel destroyed. 00736_ G-34 Mercenary destroyed. 00739_ Acquired 33 matter. 00774_ G-34 Mercenary destroyed. 00806_ Acquired 28 matter. 00829_ U-05 Engineer lays Concrete. 00833_ T-07 Excavator is excavating. 00836_ U-05 Engineer lays Concrete. 00876_ System corrupted: Energy discharge (-31). 00877_ Acquired Signal Interpreter. 00887_ A-02 Transporter destroyed. 00897_ Acquired 6 matter. 00914_ Triggered EMP Trap. 00914_ A bubble of electromagnetic force engulfs the area. 00914_ Terminal disabled. 00914_ Nuclear Reactor explodes. 00914_ Wheel destroyed. 00914_ Nuclear Reactor explodes. 00914_ Assault Rifle destroyed. Map ----- +----------------------------------------------------+ | # """ # """ #" """ #???????????# | | # # """ #T #???????????# | | + """ # """ #" """ #???????????# | | "" # """ # #" """ #???????????# | | "" # """ # #" """ +???????????# | | "" ## =# """ # #???????????# | | ## # """ ##########???????????# | | ########## """ ##########???????????? | | #????????# # #????????????## | | #???????## # """ #?????????????? | | #???????# # """ #?????????????? | | #???????# # """ #?????????????? | | #???????# "T" + """ #?????????????? | | #???????# # """ #?????????????? | | #???????# # * #?????????????? | | #???????########## # #?????????????? | | !* #????????????????# # #?????????????? | | [[[! #????????????????# #####+####?????????????? | | [[%=!#????????????????# #???????????????? | | [[=!!#????????????????# #???????????????? | | =! ########?????????# #???????????????? | | # #??????#### ## #???????????????? | | ## # #??????# #???????????????? | | ## [ #""" #??????# !! #???????????????? | | #! #"Y #??????# %! #???????????????? | | # #""" #??????# @ != #???????????????? | | + + = #??????# #???????????????? | | # ########??????# #???????????????? | | # #?????????????# #???????????????? | | # #?????????????# #???????????????? | | ## #?#???????????## +??????????????? | | ?# #??????????????#### ## #??????????????? | | ?# #?????????????????##?#### #??????????????? | | ?# #???????????????????????# ! #??????????????? | | ?# #???????????????????????# *% +??????????????? | | ?# #???????????????????????# #??????????????? | | ?# #???????????????????????? #??????????????? | | ?# ########????????????????? +??????????????? | | ## # #????????????????? #??????????????? | | # # """ #????????????????? #??????????????? | | # # """ #?#???????????????### #??????????????? | | + + """ #???????????????????? #??????????????? | | # # #????????????????????????????????????? | | # # #????????????????????????????????????? | | ############????????????????????????????????????? | | ##???????????????????????????????????????????????? | | ?????????????????????????????????????????????????? | | ?????????????????????????????????????????????????? | | ?????????????????????????????????????????????????? | | ?????????????????????????????????????????????????? | +----------------------------------------------------+ Best States ------------- Heat Dissipation 25 Energy Generation 10 Energy Capacity 125 Matter Stores 300 Matter Capacity 300 Sight Range 16 Terrain Scan Range 16 Terrain Scan Density 10 Evasion (%) 50 Item Schematics ----------------- None Robot Schematics ------------------ None Fabricated ------------ Nothing Alien Tech Used ----------------- None Achievements -------------- None Challenges ------------ None Game ------ Seed ComponentNuclearShield Manual? 0 Play Time 00:12:07 Cumulative 2.0 hours Start 2024.09.07 @ 10:10:32 End 2024.09.07 @ 10:22:33 Sessions 1 Manual Loads 0 Difficulty Rogue Special Mode None Game No. 2 Rogue 2 Adventurer 0 Explorer 0 Win Type - Total 0 Types 0/0/0/0/0/0/0/0/0 Lore% 2 Gallery% 4 Achievement% 8 Wizard Run 0 Options --------- Layout 2 ASCII 0 Keyboard 0 Movement Vi Keybinds 0 Fullscreen 1 Font 18/SmallcapsGlow Map View 50x49 Zoom Use 0% Tactical HUD 1 Map Filters NONE Filters NONE Steam 0 RUN: dbac5df9-3030-4e88-b9a4-5bca4e36b2f9